[Event "Swiss Championship U16 2022"]
[Site "Biel"]
[Date "2022.07.19"]
[Round "4.6"]
[White "Schellenberg, Simon"]
[Black "Hirzel, Cedric"]
[Result "1/2-1/2"]
[ECO "A07"]
[WhiteElo "1899"]
[BlackElo "1649"]
[Annotator "NA RC COMBH"]
[PlyCount "145"]
[EventDate "2022.07.18"]
[EventType "swiss"]
[EventCountry "SUI"]
[SourceTitle "playchess.com"]
[Source "ChessBase"]
[SourceQuality "1"]
[TimeControl "5400+30"]

1. Nf3 {[%emt 0:00:07]} d5 {[%emt 0:00:09]} 2. g3 {[%emt 0:01:57]} Nf6 {[%emt 0:00:13]} 3. Bg2 {[%emt 0:00:10]} g6 {[%emt 0:00:40]} 4. O-O {[%emt 0:00:00]} Bg7 {[%emt 0:00:21]} 5. d3 {[%emt 0:00:13]} O-O {[%emt 0:00:22]} 6. Nbd2 {[%emt 0:00:39]} Nbd7 {[%emt 0:00:52]} 7. e4 {[%emt 0:02:46]} dxe4 {[%emt 0:00:13]} 8. dxe4 {[%emt 0:03:25]} c6 {[%emt 0:00:19]} 9. c3 {[%emt 0:00:29]} Qc7 {[%emt 0:00:38]} 10. Qc2 {[%emt 0:02:05]} e5 {[%emt 0:01:03]} 11. b3 {[%emt 0:03:09]} Nb6 {[%emt 0:02:05]} 12. Bb2 {[%emt 0:01:22]} h6 {[%emt 0:01:58]} 13. Rac1 {[%emt 0:01:02]} Be6 {[%emt 0:00:44]} 14. c4 {[%emt 0:02:52]} Nh5 {[%emt 0:03:53]} 15. c5 {[%emt 0:01:16]} Nd7 {[%emt 0:03:00]} 16. b4 {[%emt 0:13:59]} f5 {[%emt 0:03:43]} 17. Nh4 {[%emt 0:02:12]} Kh7 {[%emt 0:01:17]} 18. exf5 {[%emt 0:03:09]} Bxf5 {[%emt 0:00:34]} 19. Nxf5 {[%emt 0:00:21]} gxf5 {[%emt 0:06:33]} 20. Nc4 {[%emt 0:13:57]} Kh8 {[%emt 0:00:55]} 21. Qe2 {[%emt 0:00:57]} Nhf6 {[%emt 0:00:48]} 22. Nxe5 {[%emt 0:03:25]} Nxe5 {[%emt 0:00:50]} 23. Qxe5 {[%emt 0:00:30]} Qxe5 {[%emt 0:00:21]} 24. Bxe5 {[%emt 0:00:56]} Ne4 {[%emt 0:00:54]} 25. Bxg7+ {[%emt 0:00:00]} Kxg7 {[%emt 0:00:22]} 26. Bxe4 {[%emt 0:00:00]} fxe4 {[%emt 0:00:25]} 27. Rfe1 {[%emt 0:01:33]} Rad8 {[%emt 0:01:18]} 28. Rcd1 {[%emt 0:00:42]} Rd5 {[%emt 0:10:37]} 29. Kf1 {[%emt 0:10:09]} Kf6 {[%emt 0:02:11]} 30. f3 {[%emt 0:06:52]} Kg6 {[%emt 0:01:41]} 31. f4 {[%emt 0:02:02]} Kf5 {[%emt 0:02:46]} 32. h3 {[%emt 0:02:12]} Rfd8 {[%emt 0:01:38]} 33. Ke2 {[%emt 0:00:48]} Rd3 {[%emt 0:01:14]} 34. Rg1 {[%emt 0:00:34]} R8d5 {[%emt 0:07:47]} 35. Rxd3 {[%emt 0:00:00]} Rxd3 {[%emt 0:00:21]} 36. Rg2 {[%emt 0:02:50]} Rd4 {[%emt 0:03:39]} 37. Rf2 {[%emt 0:05:15]} Rd3 {[%emt 0:00:41]} 38. g4+ {[%emt 0:00:00]} Kf6 {[%emt 0:00:39]} 39. h4 {[%emt 0:00:46]} Rh3 {[%emt 0:00:33]} 40. Rg2 {[%emt 0:00:47]} Rxh4 {[%emt 0:00:15]} 41. Ke3 {[%emt 0:00:36]} Rh1 {[%emt 0:03:01]} 42. Kxe4 {[%emt 0:00:17]} Re1+ {[%emt 0:00:27]} 43. Kd3 {[%emt 0:00:07]} Rd1+ {[%emt 0:04:22]} 44. Kc2 {[%emt 0:00:11]} Ra1 {[%emt 0:00:15]} 45. g5+ {[%emt 0:00:30]} hxg5 {[%emt 0:00:19]} 46. fxg5+ {[%emt 0:00:08]} Kg6 {[%emt 0:05:26]} 47. Kc3 {[%emt 0:00:15]} Rd1 {[%emt 0:00:27]} 48. Re2 {[%emt 0:06:40]} Rd7 {[%emt 0:01:16]} 49. Re5 {[%emt 0:00:26]} Rh7 {[%emt 0:02:50]} 50. Kd4 {[%emt 0:00:07]} Rh4+ {[%emt 0:00:10]} 51. Re4 {[%emt 0:00:21]} Rh7 {[%emt 0:00:45]} 52. Ke5 {[%emt 0:01:06]} Kxg5 {[%emt 0:00:19]} 53. Kd6 {[%emt 0:01:45]} Rh6+ {[%emt 0:01:28]} 54. Kc7 {[%emt 0:00:11]} Rh7+ {[%emt 0:00:09]} 55. Kb8 {[%emt 0:00:18]} Kf5 {[%emt 0:00:05]} 56. Re8 {[%emt 0:10:07]} b6 {[%emt 0:01:34]} 57. cxb6 {[%emt 0:00:07]} axb6 {[%emt 0:00:13]} 58. Rc8 {[%emt 0:00:34]} Rh4 {[%emt 0:01:39]} 59. a3 {[%emt 0:00:43]} c5 {[%emt 0:00:15]} 60. b5 {[%emt 0:00:45]} Ra4 {[%emt 0:00:41]} 61. Kb7 {[%emt 0:01:04]} Ke5 {[%emt 0:00:25]} 62. Kxb6 {[%emt 0:00:21]} c4 {[%emt 0:02:49]} 63. Kc5 {[%emt 0:00:21]} c3 {[%emt 0:00:38]} 64. b6 {[%emt 0:00:24]} Rxa3 {[%emt 0:01:08]} 65. Kb4 {[%emt 0:01:06]} Ra6 {[%emt 0:00:16]} 66. Kb5 {[%emt 0:00:08]} Ra3 {[%emt 0:02:34]} 67. b7 {[%emt 0:00:33]} Rb3+ {[%emt 0:00:12]} 68. Ka6 {[%emt 0:00:10]} Kd4 {[%emt 0:00:37]} 69. Rd8+ {[%emt 0:00:21]} Ke3 {[%emt 0:00:09]} 70. Rc8 {[%emt 0:00:15]} Kd2 {[%emt 0:00:54]} 71. Rxc3 {[%emt 0:00:12]} Kxc3 {[%emt 0:00:07]} 72. Ka7 {[%emt 0:00:13]} Rxb7+ {[%emt 0:00:10]} 73. Kxb7 {[%emt 0:00:39]} 1/2-1/2

[Event "Swiss Championship U16 2022"]
[Site "Biel"]
[Date "2022.07.19"]
[Round "4.7"]
[White "Kwiatkowski, Jakub"]
[Black "Gendre, Arthur"]
[Result "1-0"]
[ECO "B23"]
[WhiteElo "1770"]
[BlackElo "1414"]
[Annotator "NA RC COMBH"]
[PlyCount "61"]
[EventDate "2022.07.18"]
[EventType "swiss"]
[EventCountry "SUI"]
[SourceTitle "playchess.com"]
[Source "ChessBase"]
[SourceQuality "1"]
[TimeControl "5400+30"]

1. e4 {[%emt 0:00:02]} c5 {[%emt 0:00:06]} 2. Nc3 {[%emt 0:00:04]} d6 {[%emt 0:00:06]} 3. d4 {[%emt 0:00:06]} cxd4 {[%emt 0:00:14]} 4. Qxd4 {[%emt 0:00:07]} Nc6 {[%emt 0:00:07]} 5. Qd2 {[%emt 0:00:07]} Nf6 {[%emt 0:00:11]} 6. b3 {[%emt 0:00:08]} e6 {[%emt 0:00:08]} 7. Bb2 {[%emt 0:00:20]} Be7 {[%emt 0:00:11]} 8. O-O-O {[%emt 0:00:11]} O-O {[%emt 0:00:13]} 9. Kb1 {[%emt 0:00:55]} a6 {[%emt 0:00:12]} 10. f3 {[%emt 0:01:01]} b5 {[%emt 0:01:30]} 11. g4 {[%emt 0:01:50]} e5 {[%emt 0:00:00]} 12. Nge2 {[%emt 0:03:06]} Be6 {[%emt 0:04:34]} 13. Ng3 {[%emt 0:02:34]} Nd4 {[%emt 0:02:26]} 14. Qe3 {[%emt 0:04:30]} Qc7 {[%emt 0:08:03]} 15. Bd3 {[%emt 0:02:51]} Rfb8 {[%emt 0:05:49]} 16. g5 {[%emt 0:04:37]} Nd7 {[%emt 0:04:28]} 17. Nf5 {[%emt 0:05:06]} Bxf5 {[%emt 0:00:00]} 18. exf5 {[%emt 0:01:08]} f6 {[%emt 0:00:29]} 19. Nd5 {[%emt 0:01:04]} Qd8 {[%emt 0:01:46]} 20. Nxe7+ {[%emt 0:00:42]} Qxe7 {[%emt 0:00:32]} 21. Bxd4 {[%emt 0:00:34]} Re8 {[%emt 0:00:00]} 22. Bb2 {[%emt 0:01:09]} d5 {[%emt 0:01:55]} 23. gxf6 {[%emt 0:01:43]} Nxf6 {[%emt 0:00:00]} 24. Rhe1 {[%emt 0:01:52]} e4 {[%emt 0:00:00]} 25. fxe4 {[%emt 0:00:54]} dxe4 {[%emt 0:00:53]} 26. Bxf6 {[%emt 0:01:16]} Qxf6 {[%emt 0:00:00]} 27. Bxe4 {[%emt 0:00:46]} Kh8 {[%emt 0:00:41]} 28. Bxa8 {[%emt 0:02:08]} Rxe3 {[%emt 0:00:00]} 29. Rxe3 {[%emt 0:00:07]} h6 {[%emt 0:00:00]} 30. Re8+ {[%emt 0:00:18]} Kh7 {[%emt 0:00:00]} 31. Rdd8 {[%emt 0:00:16]} 1-0

[Event "Swiss Championship U16 2022"]
[Site "Biel"]
[Date "2022.07.19"]
[Round "4.8"]
[White "Saminskij, David"]
[Black "Sosnovski, Nikita"]
[Result "1-0"]
[ECO "B22"]
[WhiteElo "1469"]
[BlackElo "1584"]
[Annotator "NA COMBH"]
[PlyCount "119"]
[EventDate "2022.07.18"]
[EventType "swiss"]
[EventCountry "SUI"]
[SourceTitle "playchess.com"]
[Source "ChessBase"]
[SourceQuality "1"]
[TimeControl "5400+30"]

1. e4 {[%emt 0:00:01]} c5 {[%emt 0:00:06]} 2. Nf3 {[%emt 0:00:12]} d6 {[%emt 0:00:07]} 3. c3 {[%emt 0:00:06]} Nf6 {[%emt 0:00:14]} 4. Be2 {[%emt 0:00:15]} Nc6 {[%emt 0:00:16]} 5. d4 {[%emt 0:04:16]} cxd4 {[%emt 0:00:12]} 6. cxd4 {[%emt 0:00:57]} e6 {[%emt 0:05:16]} 7. Nc3 {[%emt 0:01:41]} Be7 {[%emt 0:00:03]} 8. O-O {[%emt 0:02:51]} d5 {[%emt 0:04:07]} 9. e5 {[%emt 0:00:49]} Ne4 {[%emt 0:00:47]} 10. Bd3 {[%emt 0:06:26]} Nxc3 {[%emt 0:00:14]} 11. bxc3 {[%emt 0:01:20]} Bd7 {[%emt 0:01:48]} 12. Rb1 {[%emt 0:01:29]} Qc7 {[%emt 0:00:53]} 13. Bg5 {[%emt 0:01:44]} f6 {[%emt 0:01:29]} 14. Bf4 {[%emt 0:00:00]} f5 {[%emt 0:05:52]} 15. Bg5 {[%emt 0:02:52]} h6 {[%emt 0:00:40]} 16. Bxe7 {[%emt 0:00:00]} Nxe7 {[%emt 0:00:29]} 17. Qb3 {[%emt 0:07:46]} Bc6 {[%emt 0:01:43]} 18. Rfc1 {[%emt 0:04:34]} Rb8 {[%emt 0:01:17]} 19. c4 {[%emt 0:00:25]} Qd7 {[%emt 0:02:02]} 20. Nd2 {[%emt 0:03:58]} O-O {[%emt 0:01:16]} 21. cxd5 {[%emt 0:04:13]} Nxd5 {[%emt 0:01:39]} 22. Nc4 {[%emt 0:02:53]} Nf4 {[%emt 0:03:42]} 23. Nd6 {[%emt 0:03:07]} Bxg2 {[%emt 0:06:07]} 24. Bb5 {[%emt 0:07:12]} Qe7 {[%emt 0:02:39]} 25. Qg3 {[%emt 0:00:56]} Qg5 {[%emt 0:00:45]} 26. Rc7 {[%emt 0:02:23]} Bd5 {[%emt 0:01:38]} 27. Qxg5 {[%emt 0:01:05]} hxg5 {[%emt 0:04:57]} 28. Kf1 {[%emt 0:03:18]} a6 {[%emt 0:05:57]} 29. Bc4 {[%emt 0:02:39]} Bg2+ {[%emt 0:01:18]} 30. Ke1 {[%emt 0:00:22]} b5 {[%emt 0:01:06]} 31. Bb3 {[%emt 0:01:39]} a5 {[%emt 0:00:21]} 32. Re7 {[%emt 0:00:10]} Bd5 {[%emt 0:00:57]} 33. Bxd5 {[%emt 0:00:21]} exd5 {[%emt 0:01:38]} 34. Ra7 {[%emt 0:03:57]} a4 {[%emt 0:01:48]} 35. Ra5 {[%emt 0:01:27]} Ne6 {[%emt 0:02:09]} 36. Raxb5 {[%emt 0:00:30]} Rxb5 {[%emt 0:00:08]} 37. Rxb5 {[%emt 0:00:00]} Nxd4 {[%emt 0:20:49]} 38. Rxd5 {[%emt 0:04:44]} Nc6 {[%emt 0:03:25]} 39. Rc5 {[%emt 0:02:29]} Nb4 {[%emt 0:00:57]} 40. Kd2 {[%emt 0:02:09]} Rd8 {[%emt 0:00:57]} 41. a3 {[%emt 0:00:23]} Na6 {[%emt 0:00:51]} 42. Ra5 {[%emt 0:00:06]} Nc7 {[%emt 0:00:49]} 43. Ke3 {[%emt 0:00:45]} f4+ {[%emt 0:00:03]} 44. Ke4 {[%emt 0:01:58]} Ra8 {[%emt 0:02:32]} 45. Rxa8+ {[%emt 0:00:00]} Nxa8 {[%emt 0:00:06]} 46. Kf5 {[%emt 0:00:00]} Nc7 {[%emt 0:00:20]} 47. Kxg5 {[%emt 0:00:00]} Nd5 {[%emt 0:01:08]} 48. Ne4 {[%emt 0:00:40]} Nb6 {[%emt 0:00:21]} 49. Kxf4 {[%emt 0:00:06]} Nc4 {[%emt 0:00:09]} 50. Nc3 {[%emt 0:00:00]} Nxa3 {[%emt 0:00:07]} 51. Nxa4 {[%emt 0:00:06]} Nb5 {[%emt 0:00:15]} 52. Nc5 {[%emt 0:00:17]} Kf7 {[%emt 0:00:04]} 53. Ne4 {[%emt 0:00:27]} Nd4 {[%emt 0:01:06]} 54. Ng5+ {[%emt 0:00:15]} Kg6 {[%emt 0:01:09]} 55. Ke4 {[%emt 0:00:20]} Nc6 {[%emt 0:00:50]} 56. f4 {[%emt 0:00:11]} Ne7 {[%emt 0:00:30]} 57. Nf3 {[%emt 0:00:38]} Nf5 {[%emt 0:00:53]} 58. Kd5 {[%emt 0:00:23]} Ne3+ {[%emt 0:00:14]} 59. Kd6 {[%emt 0:00:13]} Nf5+ {[%emt 0:00:11]} 60. Kd7 {[%emt 0:00:38]} 1-0

[Event "Swiss Championship U16 2022"]
[Site "Biel"]
[Date "2022.07.20"]
[Round "5.1"]
[White "Kasipour Azbari, Seyed Arvin"]
[Black "Zargarov, Mikayel"]
[Result "1-0"]
[ECO "B88"]
[WhiteElo "1944"]
[BlackElo "1994"]
[Annotator "TA"]
[PlyCount "39"]
[EventDate "2022.07.18"]
[EventType "swiss"]
[EventCountry "SUI"]
[SourceTitle "playchess.com"]
[Source "ChessBase"]
[SourceQuality "1"]
[TimeControl "5400+30"]

{[%evp 13,39,23,34,0,18,18,18,22,26,-10,-10,0,56,53,85,72,134,119,152,158,175,96,112,97,1118,1125,1349,981]} 1. e4 {[%emt 0:00:32]} c5 {[%emt 0:00:07]} 2. Nf3 {[%emt 0:00:17]} Nc6 {[%emt 0:00:21]} 3. Bc4 {[%emt 0:01:19]} e6 {[%emt 0:00:33]} 4. O-O {[%emt 0:04:20]} a6 {[%emt 0:00:34]} 5. d4 {[%emt 0:15:07]} cxd4 {[%emt 0:01:21]} 6. Nxd4 {[%emt 0:00:38]} d6 {[%emt 0:03:32]} 7. Nc3 {[%emt 0:01:19]} Nf6 {[%emt 0:04:00]} 8. Kh1 {[%emt 0:02:45] B88: Sicilian: Sozin Attack.} Qc7 {[%emt 0:04:54] [#]} 9. Nxc6 $146 {[%emt 0:17:45]} ({Predecessor:} 9. Bb3 Na5 10. f4 b5 11. Qe2 Nxb3 12. axb3 b4 13. Ncb5 Qb7 14. e5 dxe5 15. fxe5 Nd5 16. c4 bxc3 17. Nxc3 {1-0 (39) Khusnutdinov,R (2513)-Lopez Martinez,J (2593) Moscow 2010}) 9... bxc6 {[%emt 0:07:33]} 10. Qe2 {[%emt 0:03:39] The position is equal.} Be7 {[%emt 0:04:49]} 11. f4 {[%emt 0:02:50]} (11. Bf4 $5 {[%cal Re4e5]}) 11... d5 {[%emt 0:02:36]} 12. Bd3 {[%emt 0:04:44]} dxe4 {[%emt 0:01:21]} (12... O-O $11) 13. Nxe4 $14 {[%emt 0:00:00]} O-O {[%emt 0:10:30]} 14. Bd2 {[%emt 0:32:22]} Ne8 {[%emt 0:02:41]} (14... g6 $142) 15. Bc3 $16 {[%emt 0:00:19]} f6 {[%emt 0:03:30] Prevents Ng5.} 16. Rae1 {[%emt 0:01:32] 0x0.001e39dafb84dp-1022s more active pieces.} g6 {[%emt 0:04:16]} 17. Ng3 {[%emt 0:00:21]} (17. Bc4 $18) 17... Ng7 {[%emt 0:01:07] Inhibits f5.} 18. f5 {[%emt 0:01:45]} g5 {[%emt 0:03:00][%mdl 8192] [#]} (18... Nxf5 $2 19. Nxf5 gxf5 20. Bc4 $18) (18... gxf5 $16 19. Bxf5 Nxf5 20. Nxf5 exf5) 19. fxe6 $18 {[%emt 0:00:41]} Bxe6 {[%emt 0:01:00]} 20. Nh5 {[%emt 0:02:06] Weighted Error Value: White=0.17 (very precise) /Black=0.29 (precise)} 1-0

[Event "Swiss Championship U16 2022"]
[Site "Biel"]
[Date "2022.07.20"]
[Round "5.2"]
[White "Gemelli, Romain"]
[Black "Doetsch-Thaler, Nicos"]
[Result "0-1"]
[ECO "E14"]
[WhiteElo "2045"]
[BlackElo "1837"]
[Annotator "TA"]
[PlyCount "76"]
[EventDate "2022.07.18"]
[EventType "swiss"]
[EventCountry "SUI"]
[SourceTitle "playchess.com"]
[Source "ChessBase"]
[SourceQuality "1"]
[TimeControl "5400+30"]

{[%evp 14,76,55,44,55,53,54,46,41,40,37,0,0,-45,0,0,26,7,17,0,13,0,33,38,159,-52,-45,-58,-54,-54,-47,-56,-55,-59,-58,-60,0,0,0,-84,0,-201,0,0,0,0,97,64,54,-665,-661,-669,-668,-641,-621,-562,-452,-882,-862,-872,-856,-847,-839,-793,-782]} 1. d4 {[%emt 0:01:51]} Nf6 {[%emt 0:00:20]} 2. c4 {[%emt 0:00:08]} e6 {[%emt 0:00:13]} 3. Nf3 {[%emt 0:00:08]} Bb4+ {[%emt 0:00:23]} 4. Nbd2 {[%emt 0:00:19]} b6 {[%emt 0:00:43]} 5. a3 {[%emt 0:00:39]} Bxd2+ {[%emt 0:00:33]} 6. Qxd2 {[%emt 0:00:32]} Bb7 {[%emt 0:05:25]} 7. e3 {[%emt 0:03:31]} Ne4 {[%emt 0:00:20]} 8. Qc2 {[%emt 0:14:24]} a5 {[%emt 0:10:35] E14: Queen's Indian: Classical Variation (4 e3).} 9. Bd3 {[%emt 0:02:31]} f5 {[%emt 0:05:29]} 10. b3 {[%emt 0:00:00]} O-O {[%emt 0:04:56] White is slightly better.} 11. Bb2 {[%emt 0:00:00]} d6 {[%emt 0:01:28]} 12. O-O-O {[%emt 0:04:29][%cal Od4d5]} Nd7 {[%emt 0:10:19]} 13. Ne1 {[%emt 0:06:02] [#]} (13. Rhg1 $5 {[%cal Rg2g4]}) 13... c5 $146 {[%emt 0:17:45]} (13... a4 $15 14. b4 Qh4) ({Predecessor:} 13... d5 14. f3 Nef6 15. Rg1 Kf7 16. g4 g6 17. gxf5 exf5 18. Bxf5 gxf5 19. Qxf5 Qe7 {0-1 (88) Wissel,D (1489)-Holst,M (1857) Heusenstamm 2009}) 14. f3 $11 {[%emt 0:18:57]} Nef6 {[%emt 0:00:59][%cal Oa5a4]} 15. d5 {[%emt 0:01:21]} exd5 {[%emt 0:03:10][%cal Oa5a4]} 16. cxd5 {[%emt 0:01:22]} (16. Bxf5 $5 {[%cal Rc4d5]} Qe7 17. Nd3 $11) 16... Qe7 {[%emt 0:09:19]} (16... Nxd5 $2 17. Bc4 $18) ({Don't play} 16... Bxd5 17. Bxf5 Bf7 18. Rxd6 $16) 17. Bxf5 {[%emt 0:08:30]} Qxe3+ {[%emt 0:00:23]} 18. Kb1 {[%emt 0:00:23]} b5 {[%emt 0:07:39]} ({Black should play} 18... a4 $14) 19. Qc3 $2 {[%emt 0:04:38]} (19. Be6+ $1 $16 Kh8 20. Bc1) 19... Qxc3 $1 $15 {[%emt 0:04:31]} 20. Bxc3 {[%emt 0:00:07]} b4 {[%emt 0:00:51]} 21. Be6+ {[%emt 0:00:53]} Kh8 {[%emt 0:00:10]} 22. axb4 {[%emt 0:00:19]} axb4 {[%emt 0:00:10]} 23. Bb2 {[%emt 0:03:00]} Nb6 {[%emt 0:00:34][%cal Rf6d5]} 24. Bxf6 {[%emt 0:00:18]} gxf6 {[%emt 0:01:34]} (24... Rxf6 $15 25. Nc2 Rg6) 25. Nc2 $11 {[%emt 0:01:00]} Rfe8 {[%emt 0:05:42]} 26. Ne3 {[%emt 0:01:38]} (26. Kb2 $11 {remains equal.}) 26... Bc8 {[%emt 0:01:36]} (26... Ra3 $17 27. Kb2 (27. Kc2 Ra2+ 28. Kb1 Ra3 $17) 27... Na4+ 28. bxa4 Rxe3) 27. Nf5 $2 {[%emt 0:02:01] [#]} (27. Rhe1 $1 $11 {and White has nothing to worry.}) 27... Bxe6 $2 {[%emt 0:00:19]} ({Black should try} 27... Nxd5 $1 $19 {[%mdl 512]} 28. Bxd5 Bxf5+ 29. Be4 Bxe4+ 30. fxe4 Rxe4) 28. dxe6 {[%emt 0:00:02]} d5 {[%emt 0:04:03]} 29. Rhe1 {[%emt 0:03:49]} d4 {[%emt 0:00:31]} (29... Ra3 $11 {keeps the balance.}) 30. e7 {[%emt 0:09:13]} Nd5 {[%emt 0:00:41]} 31. Re6 $2 {[%emt 0:00:51][%mdl 8192] White does not recover from this.} (31. Kc2 $14) 31... Nc3+ $19 {[%emt 0:01:01] Black is clearly winning.} 32. Kc2 {[%emt 0:00:47]} Ra2+ {[%emt 0:01:11]} 33. Kd3 {[%emt 0:00:05] Hoping for Rde1.} Nxd1 {[%emt 0:00:19]} 34. Nd6 {[%emt 0:01:11]} Raa8 {[%emt 0:01:06] White must now prevent ...Nf2+.} 35. Kc4 {[%emt 0:00:21]} (35. Nxe8 $142 Rxe8 36. Kc4) 35... Nb2+ {[%emt 0:00:34]} 36. Kxc5 {[%emt 0:01:00] [#]} d3 $1 {[%emt 0:00:23] Threatens to win with ...d2.} 37. Ne4 {[%emt 0:00:14]} f5 {[%emt 0:00:39]} 38. Nd2 {[%emt 0:01:00]} Kg7 {[%emt 0:00:16] Weighted Error Value: White=0.79/Black=0.32} 0-1

[Event "Swiss Championship U16 2022"]
[Site "Biel"]
[Date "2022.07.20"]
[Round "5.3"]
[White "Rotunno, Flavio"]
[Black "Kostov, Kyrill"]
[Result "1-0"]
[ECO "A57"]
[WhiteElo "1901"]
[BlackElo "2008"]
[Annotator "TA"]
[PlyCount "57"]
[EventDate "2022.07.18"]
[EventType "swiss"]
[EventCountry "SUI"]
[SourceTitle "playchess.com"]
[Source "ChessBase"]
[SourceQuality "1"]
[TimeControl "5400+30"]

{[%evp 13,56,-15,0,-62,2,-68,0,-69,-70,-55,0,-41,15,-104,32,29,165,169,152,161,167,178,168,143,710,684,1002,989,960,914,29990,29991,29991,29992,29992,29993,29996,29994,29994,29994,29994,29995,29995,29996,29999]} 1. d4 {[%emt 0:00:19]} Nf6 {[%emt 0:00:19]} 2. c4 {[%emt 0:00:19]} c5 {[%emt 0:00:29]} 3. d5 {[%emt 0:00:25]} b5 {[%emt 0:00:40]} 4. cxb5 {[%emt 0:00:53]} a6 {[%emt 0:00:53][%cal Ba7a6,Ba6b5,Bb5b4][%mdl 32]} 5. Nc3 {[%emt 0:01:30]} axb5 {[%emt 0:01:32]} 6. e4 {[%emt 0:00:21]} b4 {[%emt 0:00:14]} 7. Nb5 {[%emt 0:01:43]} d6 $1 {[%emt 0:00:47]} 8. a4 {[%emt 0:03:24] A57: Benko/Volga Gambit.} (8. Nf3 $11) 8... Nbd7 {[%emt 0:07:37]} (8... Nxe4 $15 9. Bc4 Nf6) 9. Bc4 {[%emt 0:08:18]} (9. Qc2 $11) 9... Nb6 {[%emt 0:00:24]} (9... Nxe4 $2 10. Qe2 $16) (9... Ne5 $15 10. Be2 Nxe4) 10. Qe2 {[%emt 0:01:09]} (10. Bd3 $1 $11) 10... Nxc4 {[%emt 0:05:56]} ({Don't take} 10... Rxa4 11. Rxa4 Nxa4 12. e5 $16) 11. Qxc4 {[%emt 0:07:54][%cal Oe4e5] [#]} Nd7 $146 {[%emt 0:05:24]} (11... e6 $15) ({Predecessor:} 11... Ba6 12. b3 g6 13. Bb2 Bg7 14. Nf3 O-O 15. O-O Qb6 16. Qe2 Rfe8 17. Nd2 Qb7 {0-1 (34) Haemmerlein,T (2204)-Kalinitschew,S (2476) Berlin 2007}) 12. Nf3 {[%emt 0:08:46]} Ba6 {[%emt 0:09:59]} (12... g6 $15) 13. Bf4 {[%emt 0:10:33]} (13. b3 $11) 13... Qb8 {[%emt 0:01:20]} (13... g6 $17 {Hoping for ...Nb6.} 14. b3 Bg7) 14. O-O $14 {[%emt 0:08:44][%cal Oe4e5] Black must now prevent e5!} g6 {[%emt 0:39:27] [#]} (14... f6 $11 {and Black is okay.}) 15. e5 $1 $18 {[%emt 0:14:33]} dxe5 {[%emt 0:01:56] [#]} 16. Nxe5 {[%emt 0:05:46][%mdl 512]} Nxe5 {[%emt 0:11:34]} 17. Bxe5 {[%emt 0:02:36]} Qxe5 {[%emt 0:00:18]} 18. Rfe1 {[%emt 0:01:57]} Qb8 {[%emt 0:01:08][%mdl 8192] This move loses the game for Black.} (18... Qxb2 $2 19. Qxc5 e6 20. Nc7+ Kd7 21. Qc6+ Ke7 22. d6+ Kf6 23. Qxa8 $18) (18... Qd4 $16 19. Qxd4 (19. Nxd4 $2 {is the wrong capture.} Bxc4 20. Rac1 Bg7 $19) 19... cxd4 20. Nc7+ Kd8 21. Nxa8 Bg7) 19. Qxc5 {[%emt 0:10:03] Threatens to win with Nc7+.} Kd8 {[%emt 0:04:14] Against Nc7} 20. d6 {[%emt 0:05:49][%cal Rd6e7]} e6 {[%emt 0:03:46]} 21. Qe5 {[%emt 0:04:21] White wants to mate with Qf6+.} Rg8 {[%emt 0:02:12]} 22. Qf6+ {[%emt 0:00:00] White mates.} Ke8 23. d7+ {[%emt 0:01:43][%mdl 64] Deflection, Decoy} Kxd7 {[%emt 0:00:08]} 24. Qxf7+ {[%emt 0:00:32]} Kc6 {[%emt 0:05:55]} 25. Rxe6+ {[%emt 0:00:00]} Bd6 {[%emt 0:00:38]} 26. Rc1+ {[%emt 0:00:17][%mdl 64] Deflection} Kb6 {[%emt 0:00:00]} 27. Nxd6 {[%emt 0:00:56]} Ka5 {[%emt 0:01:05]} 28. Re5+ {[%emt 0:00:30]} Kb6 {[%emt 0:00:00]} 29. a5# {[%emt 0:00:00] Weighted Error Value: White=0.35/Black=0.86} 1-0